Cogmind - Beta 9.4 @@@ ROGUE MODE // 2020.01.30 @ 23:18:55 Player: Destravous Result: Destroyed by L-31 Rogue with Katana Performance ------------- Evolutions (0) 0 Regions Visited (4) 800 Robots Destroyed (15) 75 Value Destroyed (281) 281 Prototype IDs (1) 20 Alien Tech Used (0) 0 Bonus (300) 300 TOTAL SCORE: 1476 Bonus ------- Aligned with FarCom 300 Cogmind --------- Core Integrity 0/250 Matter 279/300 Energy 100/100 System Corruption 0% Temperature Cool (0) Movement Walking (180) Ox2 Location -9/Mines Parts ------- > --- POWER (1) -------- (None) > --- PROPULSION (2) --- Aluminum Leg Improved Carbon-fiber Leg > --- UTILITY (2) ------ Humpback > --- WEAPON (2) ------- Mini Grenade Launcher > --- INVENTORY (24) --- Fission Core Light Treads Aluminum Leg Improved Heat Shielding Heat Sink Small Storage Unit High-capacity Storage Unit High-capacity Storage Unit Humpback Small Battery (100) Large Battery (300) Large Battery (300) Large Battery (300) High-capacity Matter Pod (200) Targeting Computer Energy Filter ECM Suite Improved Trap Extractor Lightning Gun Latent Energy Streamer Beam Cannon Remote Datajack Peak State ------------ > --- POWER ------------ Light Ion Engine > --- PROPULSION ------- Light Treads Light Treads > --- UTILITY ---------- Humpback > --- WEAPON ----------- Latent Energy Streamer Beam Cannon > --- INVENTORY -------- Fission Core Aluminum Leg Aluminum Leg Improved Carbon-fiber Leg Heat Sink Small Storage Unit High-capacity Storage Unit High-capacity Storage Unit Humpback Small Battery Large Battery Large Battery Large Battery High-capacity Matter Pod Targeting Computer Energy Filter ECM Suite Improved Trap Extractor Lightning Gun Beam Cannon Remote Datajack [Rating: 20] Favorites ----------- Power Light Ion Engine Engine Light Ion Engine Propulsion Light Treads Treads Light Treads Leg Aluminum Leg Utility Humpback Storage Humpback Processor Signal Interpreter Weapon Beam Cannon Energy Gun Lightning Gun Energy Cannon Beam Cannon Ballistic Gun Assault Rifle Launcher Mini Grenade Launcher Build | -11 -10 -10 -10 -9 ------- Run | Scr Mat Min Exi Min Slots Evolved . | . . . . . Power . | . . . . . Propulsion . | . . . . . Utility . | . . . . . Weapon . | . . . . . Parts Attached 16 | . 7 . 5 4 Power 3 | . 2 . 1 . Engine 3 | . 2 . 1 . Core . | . . . . . Reactor . | . . . . . Propulsion 5 | . 1 . 2 2 Treads 2 | . . . 2 . Leg 3 | . 1 . . 2 Wheel . | . . . . . Hover . | . . . . . Flight . | . . . . . Utility 2 | . 1 . 1 . Device . | . . . . . Storage 1 | . . . 1 . Processor 1 | . 1 . . . Hackware . | . . . . . Protection . | . . . . . Artifact . | . . . . . Weapon 6 | . 3 . 1 2 Energy Gun 1 | . . . . 1 Energy Cannon 4 | . 3 . 1 . Ballistic Gun . | . . . . . Ballistic Cannon . | . . . . . Launcher 1 | . . . . 1 Special Weapon . | . . . . . Impact Weapon . | . . . . . Slashing Weapon . | . . . . . Piercing Weapon . | . . . . . Special Melee Weapon . | . . . . . Unidentified Prototypes 1 | . . . 1 . Parts Lost 4 | . 1 . . 3 Power 2 | . 1 . . 1 Propulsion 1 | . . . . 1 Utility . | . . . . . Weapon 1 | . . . . 1 Highest Loss Streak 3 | . 1 . . 3 Average Slot Usage (%) 87 | . 98 100 86 82 Engine 13 | . 14 14 13 13 Treads 20 | . . . 25 25 Leg 6 | . 28 28 2 1 Storage 14 | . 14 14 14 14 Processor 3 | . 13 14 1 . Energy Gun 1 | . . . . 9 Energy Cannon 23 | . 9 28 28 16 Ballistic Gun 2 | . 17 . . . Naked Turns . | . . . . . Heaviest Build 96 | 11 13 13 96 96 Greatest Support 40 | 20 20 20 40 40 Greatest Overweight (x) 4 | . . . 4 4 Average Overweight (x) 1 | . . . 1 2 Largest Inventory Capacity 24 | 6 6 6 24 24 Average Capacity 19 | 6 6 6 22 24 Most Carried 24 | 6 6 5 17 24 Average Carried 12 | 6 5 5 11 22 Final Capacity 24 | 6 6 6 24 24 Final Carried 23 | 6 5 5 17 23 Class Distribution -------------------- 76% | Hauler-Mutant 23% | Mutant Dominant Class ---------------- Mutant | -10/Materials Mutant | -10/Mines Hauler-Mutant | -10/Exiles Hauler-Mutant | -9/Mines Resources | -11 -10 -10 -10 -9 ----------- Run | Scr Mat Min Exi Min Matter Collected 526 | 200 137 . 65 124 Remotely . | . . . . . Salvage Created 371 | . 271 . . 100 Parts 26 | . 17 . . 9 Haulers Intercepted 1 | . 1 . . . Recyclers Shooed 1 | . 1 . . . Parts Field Recycled . | . . . . . Retrieved Matter . | . . . . . Parts Self-Destructed . | . . . . . Prevented . | . . . . . Kills | -11 -10 -10 -10 -9 ------- Run | Scr Mat Min Exi Min Combat Hostiles Destroyed 13 | . 7 . . 6 Guns 8 | . 4 . . 4 Cannons 3 | . 3 . . . AOE 2 | . . . . 2 Classes Destroyed 4 | . 4 . . . Hauler 1 | . 1 . . . Watcher 1 | . 1 . . . Swarmer 8 | . 3 . . 5 Grunt 5 | . 4 . . 1 Best Kill Streak 4 | . 4 . . 4 Combat Bots Only 4 | . 3 . . 4 Max Kills in Single Turn 2 | . 1 . . 2 Gunslinging . | . . . . . Exploded 2 | . . . . 2 Melee . | . . . . . Uniques/NPCs Destroyed . | . . . . . Combat | -11 -10 -10 -10 -9 -------- Run | Scr Mat Min Exi Min Damage Taken 1487 | . 516 . . 971 Core 261 | . 116 . . 145 Absorbed by Shields . | . . . . . Core Remaining (%) 100 | 100 . . . . Volleys Fired 38 | . 26 . 1 11 Largest 2 | . 2 . 2 1 Hottest 120 | . 80 . 120 55 Shots Fired 65 | . 52 . 2 11 Gun 48 | . 39 . . 9 Cannon 15 | . 13 . 2 . Launcher 2 | . . . . 2 Special . | . . . . . Kinetic 39 | . 39 . . . Thermal 15 | . 13 . 2 . Explosive 2 | . . . . 2 Electromagnetic 9 | . . . . 9 Robot Hit Streak 11 | . 11 . . 5 Robot Miss Streak 5 | . 5 . . 2 Penetration Max . | . . . . . Secondary Targets 2 | . 2 . . . Max Gunslinging Chain 1 | . 1 . . . Shots Hit Robots 37 | . 30 . . 7 Core Hits 20 | . 13 . . 7 Critical Hits 1 | . 1 . . . Critical Kills . | . . . . . Critical Parts Destroyed 1 | . 1 . . . Melee Attacks . | . . . . . Impact . | . . . . . Slashing . | . . . . . Piercing . | . . . . . Sneak Attacks . | . . . . . Combat Hostiles . | . . . . . Follow-up Attacks . | . . . . . Damage Inflicted 713 | . 431 . . 282 Guns 356 | . 256 . . 100 Cannons 175 | . 175 . . . Explosions 182 | . . . . 182 Melee . | . . . . . Ramming . | . . . . . Kinetic 256 | . 256 . . . Thermal 175 | . 175 . . . Explosive 182 | . . . . 182 Electromagnetic 100 | . . . . 100 Impact . | . . . . . Slashing . | . . . . . Piercing . | . . . . . Highest Corruption . | . . . . . Average Corruption . | . . . . . Corruption Purged . | . . . . . Overload Shots . | . . . . . Overflow Damage 27 | . 12 . . 15 Projectiles 12 | . 12 . . . Explosions 15 | . . . . 15 Melee . | . . . . . Knockbacks . | . . . . . Impact . | . . . . . Kinetic . | . . . . . Secondary . | . . . . . Self-Inflicted Damage 46 | . . . . 46 Shots 1 | . . . . 1 Rammed . | . . . . . Targets Rammed . | . . . . . Kicked . | . . . . . Crushed . | . . . . . Highest Temperature 258 | . 258 . 60 112 Average Temperature 83 | . 103 . 31 51 Received Heat Transfer 192 | . 114 . . 78 Effects 1 | . 1 . . . Energy Bleed 1 | . 1 . . . Siege Activations . | . . . . . Robots Corrupted . | . . . . . Combat Hostiles . | . . . . . Parts Fried 2 | . . . . 2 Impact Corruptions . | . . . . . Robots Melted . | . . . . . Combat Hostiles . | . . . . . Parts Melted . | . . . . . Heat Transferred 370 | . 370 . . . Parts Sabotaged . | . . . . . Parts Stolen . | . . . . . Parts Stripped . | . . . . . Power Chain Reactions . | . . . . . Missiles Intercepted . | . . . . . Alert | -11 -10 -10 -10 -9 ------- Run | Scr Mat Min Exi Min Peak Influence 203 | . 203 77 . 100 Average Influence 79 | . 106 76 . 67 Maximum Alert Level 1 | . 1 . . . Low Security (%) 98 | 100 96 100 . 100 Level 1 1 | . 3 . . . Level 2 . | . . . . . Level 3 . | . . . . . Level 4 . | . . . . . Level 5 . | . . . . . High Security . | . . . . . Max Security . | . . . . . Squads Dispatched 1 | . 1 . . . Investigation 1 | . 1 . . . Extermination . | . . . . . Reinforcement . | . . . . . Assault . | . . . . . Garrison . | . . . . . Intercept . | . . . . . Construction Impeded . | . . . . . Haulers Reinforced . | . . . . . Stealth | -11 -10 -10 -10 -9 --------- Run | Scr Mat Min Exi Min Distress Signals 1 | . 1 . . . Communications Jammed . | . . . . . Distress Signals . | . . . . . Times Spotted 24 | . 9 . . 15 Peak Tracking Total 7 | . 4 . . 7 Tactical Retreats 3 | . 1 . . 2 Traps | -11 -10 -10 -10 -9 ------- Run | Scr Mat Min Exi Min Traps Triggered 1 | . 1 . . . Indirectly . | . . . . . Trap Hack Attempts . | . . . . . Triggered . | . . . . . Disarmed . | . . . . . Reprogrammed . | . . . . . Reused . | . . . . . Traps Extracted . | . . . . . Installed . | . . . . . Triggered . | . . . . . Machines | -11 -10 -10 -10 -9 ---------- Run | Scr Mat Min Exi Min Machines Disabled . | . . . . . Max in Single Turn . | . . . . . Machines Sabotaged . | . . . . . Garrisons Compromised . | . . . . . Overloaded Fab Kills . | . . . . . Fab Network Shutdowns . | . . . . . Hacking | -11 -10 -10 -10 -9 --------- Run | Scr Mat Min Exi Min Machines Accessed 8 | . 3 1 3 1 Terminals 4 | . 3 1 . . Fabricators . | . . . . . Repair Stations . | . . . . . Recycling Units . | . . . . . Scanalyzers . | . . . . . Garrison Access . | . . . . . Total Hacks 36 | . 7 3 25 1 Successful 32 | . 3 3 25 1 Failed 4 | . 4 . . . Catastrophic 1 | . 1 . . . Database Lockouts . | . . . . . Manual 1 | . . . 1 . Terminals 10 | . 7 3 . . Fabricators . | . . . . . Repair Stations . | . . . . . Recycling Units . | . . . . . Scanalyzers . | . . . . . Garrison Access . | . . . . . Terminal Hacks 32 | . 3 3 25 1 Record 30 | . 2 3 25 . Open Door 1 | . . . . 1 Zone Layout 1 | . 1 . . . Fabricator Hacks . | . . . . . Repair Station Hacks . | . . . . . Recycling Unit Hacks . | . . . . . Scanalyzer . | . . . . . Garrison Access Hacks . | . . . . . Unauthorized Hacks . | . . . . . Terminals . | . . . . . Fabricators . | . . . . . Repair Stations . | . . . . . Recycling Units . | . . . . . Scanalyzers . | . . . . . Garrison Access . | . . . . . Data Cores Recovered . | . . . . . Used . | . . . . . Hacking Detections 2 | . 2 . . . Full Trace Events 1 | . 1 . . . Feedback Events . | . . . . . Feedback Blocked . | . . . . . Robot Schematics Acquired . | . . . . . Robots Built . | . . . . . Matter . | . . . . . Time . | . . . . . Total Robot Build Rating . | . . . . . Part Schematics Acquired . | . . . . . Parts Built . | . . . . . Matter . | . . . . . Time . | . . . . . Total Part Build Rating . | . . . . . Parts Repaired . | . . . . . Time . | . . . . . Parts Recycled . | . . . . . Recycled Matter . | . . . . . Retrieved Matter . | . . . . . Retrieved Components . | . . . . . Parts Scanalyzed . | . . . . . Part Schematics Acquired . | . . . . . Parts Damaged . | . . . . . Bothacking | -11 -10 -10 -10 -9 ------------ Run | Scr Mat Min Exi Min Used RIF Installer . | . . . . . Robots Hacked . | . . . . . Non-combat . | . . . . . Combat . | . . . . . Robot Hacks Applied . | . . . . . Relay Couplers Released . | . . . . . Robots Rewired . | . . . . . Allies Hacked . | . . . . . Hacks Repelled . | . . . . . Allies | -11 -10 -10 -10 -9 -------- Run | Scr Mat Min Exi Min Total Allies . | . . . . . Largest Group . | . . . . . Highest-Rated Group . | . . . . . Highest-Rated Ally . | . . . . . Total Orders . | . . . . . Ally Attacks . | . . . . . Total Damage . | . . . . . Kills . | . . . . . Allies Corrupted . | . . . . . Allies Melted . | . . . . . Intel | -11 -10 -10 -10 -9 ------- Run | Scr Mat Min Exi Min Robot Analysis Total . | . . . . . Derelict Logs Recovered . | . . . . . Drone Launches . | . . . . . Drone Recoveries . | . . . . . Exploration | -11 -10 -10 -10 -9 ------------- Run | Scr Mat Min Exi Min Turns Passed 2118 | 43 302 48 1354 371 Spaces Moved 1114 | 36 172 41 699 166 Core . | . . . . . Treads 753 | . . . 600 153 Legs 361 | 36 172 41 99 13 Wheels . | . . . . . Hover . | . . . . . Flight . | . . . . . Fastest Speed 120 | 120 120 120 120 180 Average Speed 176 | 120 120 120 190 199 Slowest Speed 240 | 120 120 120 240 240 Overloaded Moves . | . . . . . Propulsion Burnouts . | . . . . . Robots Hopped . | . . . . . Cave-ins Triggered . | . . . . . Exploration Rate (%) 29 | 3 42 10 72 21 Regions Visited 4 Branch Regions 3 Pre-discovered Areas . | . . . . . Known Exits Taken 2 | . 1 1 . . Unknown Exits Taken 2 | 1 . . 1 . Scrap Searched 1 | . . . . 1 Spaces Dug . | . . . . . Terrain Destroyed 25 | . . . . 25 Melee . | . . . . . Projectile . | . . . . . AOE 25 | . . . . 25 Actions | -11 -10 -10 -10 -9 --------- Run | Scr Mat Min Exi Min Total 1205 | 35 217 40 720 193 Wait 7 | . 2 . . 5 Move 1110 | 35 171 40 698 166 Hop . | . . . . . Pick Up 23 | . 3 . 13 7 Fast Attach 6 | . 4 . 2 . Attach 2 | . 1 . . 1 Detach . | . . . . . Swap 8 | . 2 . 3 3 Drop 11 | . 8 . 3 . Fire 38 | . 26 . 1 11 Melee . | . . . . . Ram . | . . . . . Kick . | . . . . . Crush . | . . . . . Escape Stasis . | . . . . . Rewire . | . . . . . Trap . | . . . . . Miscellaneous . | . . . . . Route ------- -11/Scrapyard -10/Materials -10/Mines (discovered 2 exits: [*Mat] / *Exi) -10/Exiles -9/Mines History --------- Turn | Location | Event 1 | -11/Scrapyard | Discovered new exit (range 3) 44 | -11/Scrapyard | Entered Materials 302 | -10/Materials | Build established: Mutant 328 | -10/Materials | Discovered new exit (range 13) 344 | -10/Materials | Identified exit to Mines 346 | -10/Materials | Entered Mines 356 | -10/Mines | Discovered new exit (range 5) 388 | -10/Mines | Deemed a non-threat by the Exiles lab entrance 388 | -10/Mines | Discovered new exit (range 5) 393 | -10/Mines | Identified exit to Exiles 394 | -10/Mines | Entered Exiles 433 | -10/Exiles | Met 8R-AWN 454 | -10/Exiles | Met EX-HEX 618 | -10/Exiles | Met EX-DEC 742 | -10/Exiles | Met EX-BIN 805 | -10/Exiles | Build established: Hauler-Mutant 954 | -10/Exiles | Aligned with FarCom system 956 | -10/Exiles | Given EX-Vault access code 1196 | -10/Exiles | Discovered new exit (range 11) 1453 | -10/Exiles | Opened EX-Vault 1459 | -10/Exiles | Found Prototype Energy Cannon 1460 | -10/Exiles | Identified Latent Energy Streamer 1505 | -10/Exiles | Warned to stay clear of 0b10 Research branches 1748 | -10/Exiles | Left Exiles lab with Latent Energy Streamer 1748 | -10/Exiles | Entered Mines 1767 | -9/Mines | Met a Derelict who couldn't figure out how to use a Trap Extractor 1816 | -9/Mines | Met a Derelict bent on vengeance 2072 | -9/Mines | Core integrity fell below 50% 2113 | -9/Mines | Core integrity fell below 20% 2119 | -9/Mines | Destroyed by L-31 Rogue with Katana Last Messages --------------- 02067_ Searching scrap... 02067_ Found 36 Matter. 02067_ Found Cooling System. 02067_ Found Shotgun. 02067_ Found Mni. Grenade Launcher. 02071_ Acquired Mni. Grenade Launcher. 02074_ Lgt. Treads destroyed. 02077_ Acquired 15 matter. 02090_ Lgt. Ion Engine destroyed. 02091_ S-10 Pest destroyed. 02093_ Beam Cannon destroyed. 02098_ Destroyed Mining Laser. 02098_ G-34 Mercenary destroyed. 02098_ S-10 Pest destroyed. 02100_ The unstable cave ceiling collapses. 02104_ Acquired 4 matter. [Achievement: First Step to Greatness] [Achievement: Back For More] [Achievement: This Is Interesting...] [Achievement: Just Browsing] Map ----- +----------------------------------------------------+ | ???????# ### ###### * #?????????????? | | ???????# #?## #????? #??????????????? | | ???????# ##### #????? ???????????????? | | ??????## #????? #???????????????? | | ??????# ##????? #???????????????? | | ?????## #######??????# #???????????????? | | ????## ##????????##### #???????????????? | | ##### #?????????# ! #???????????????? | | #" ### #?????????#= [% #???????????????? | | #" ^!# #?????????#% #####???????????????? | | #" ##???????##= ##??????????????????? | | #" ^^ ##?????## #??????????????????? | | #"] #X ##????# #= #??????????????????? | | #"/### #????# #??????????????????? | | ####?### #???## ##?????????????????? | | ??????## #???# g #?????????????????? | | ?????## #???# #?????????????????? | | ????## #??## ###?????????????????? | | ????# ##### ###???????????????????? | | ????# #### ##?????????????????????? | | ????# ##?# s #??????????????????????? | | ????## ##??# #??????????????????????? | | ?????# #???# #??????????????????????? | | ?????# ##???# #??????????????????????? | | ???### #???# # l#??????????????????????? | | ??## #??# ## @#??????????????????????? | | ??# #??# #?# ?????????????????????? | | ??## ##??####??######????????????????????? | | ???#####???????????????????????????????????? | | ???????????????????????????????????????????? | | ???????????????????????????????????????????? | | ???????????????????????????????????????????? | | ???????????????????????????????????????????? | | ???????????????????????????????????????????? | | ???????????????????????????????????????????? | | ???????????????????????????????????????????? | | ???????????????????????????????????????????? | | ???????????????????????????????????????????? | | | | | | | | | | | | | | | | | | | | | | | | | +----------------------------------------------------+ Best States ------------- Heat Dissipation 25 Energy Generation 10 Energy Capacity 125 Matter Stores 300 Matter Capacity 300 Sight Range 16 Terrain Scan Density 10 Evasion (%) 40 Recoil Reduction 2 Item Schematics ----------------- None Robot Schematics ------------------ None Fabricated ------------ Nothing Alien Tech Used ----------------- None Achievements -------------- Back For More Crack Shot First Step to Greatness Just Browsing Librarian Loot Pinata One Hack Too Far Risk Taker Storm Trooper This Is Interesting... Tourist Challenges ------------ None Game ------ Seed DisposableNeutronCoupler Manual? 0 Play Time 00:29:54 Cumulative 75.0 hours Start 2020.01.30 @ 22:39:34 End 2020.01.30 @ 23:18:55 Sessions 1 Manual Loads 0 Difficulty Rogue Special Mode None Game No. 54 Rogue 54 Adventurer 0 Explorer 0 Win Type - Total 2 Types 2/0/0/0/0/0/0 Lore% 33 Gallery% 49 Achievement% 4 Wizard Run 0 Options --------- ASCII 0 Keyboard 0 Movement Mouse Keybinds 0 Fullscreen 1 Font 18/SmallcapsGlow Map View 76x50 Tactical HUD 1 Map Filters NONE Filters NONE Steam 1 RUN: 5b1bc16a-198c-4bd6-9783-c3d80eea76be